bitfinex/quotes_BTCUSD_20250114
["timestamp","ask_amount","ask_price","bid_price","bid_amount"]
[1736842034129,0.00099731,95211.0,95210.0,2.6067822]
[1736842037258,3.1e-07,95211.0,95210.0,2.6067822]
[1736842037494,3.1e-07,95211.0,95210.0,2.3281549]
[1736842038217,3.1e-07,95211.0,95210.0,2.8281549]
[1736842039260,3.1e-07,95211.0,95210.0,2.8132749]
[1736842039464,3.1e-07,95211.0,95210.0,2.8191149]
[1736842040392,3.1e-07,95211.0,95210.0,2.8141149]
[1736842040824,3.1e-07,95211.0,95210.0,2.8231149]
[1736842041204,3.1e-07,95211.0,95210.0,2.8281149]
[1736842042304,3.1e-07,95211.0,95210.0,3.6849149]
[1736842042510,3.1e-07,95211.0,95210.0,3.71748392]
[1736842042701,3.1e-07,95211.0,95210.0,3.70848392]
[1736842043026,3.1e-07,95222.0,95221.0,0.1]
[1736842043226,5.1e-07,95232.0,95231.0,0.373]
[1736842043452,5.1e-07,95232.0,95231.0,0.64517814]
[1736842043652,5.1e-07,95232.0,95231.0,2.14517814]
[1736842044062,5.1e-07,95232.0,95231.0,2.35519314]
[1736842044664,5.1e-07,95232.0,95231.0,2.36119314]
[1736842044904,5.1e-07,95232.0,95231.0,2.40477625]
[1736842045514,5.1e-07,95232.0,95231.0,2.37019314]
[1736842045730,0.01646094,95255.0,95254.0,0.3748]
[1736842045932,0.01660722,95255.0,95254.0,0.51344384]
[1736842046310,0.0008518,95256.0,95255.0,0.9863]
[1736842046311,8e-07,95256.0,95255.0,0.9863]
[1736842046493,8e-07,95256.0,95255.0,2.59610384]
[1736842046936,8e-07,95256.0,95255.0,2.59796927]
[1736842047368,8e-07,95256.0,95255.0,2.06136927]
[1736842047573,8e-07,95256.0,95255.0,2.06720927]
[1736842048358,8e-07,95256.0,95255.0,2.07620927]
[1736842048734,8e-07,95256.0,95255.0,2.08120927]
[1736842048942,8e-07,95256.0,95255.0,2.09615812]
[1736842049238,8e-07,95256.0,95255.0,2.00602572]
[1736842049377,8e-07,95256.0,95255.0,2.01182572]
[1736842049585,8e-07,95256.0,95255.0,2.10602572]
[1736842049784,8e-07,95256.0,95255.0,1.98523687]
[1736842049967,8e-07,95256.0,95255.0,1.99103687]
[1736842050397,8e-07,95256.0,95255.0,2.09103687]
[1736842050752,8e-07,95256.0,95255.0,1.99103687]
[1736842050994,8e-07,95256.0,95255.0,2.09103687]
[1736842051201,8e-07,95256.0,95255.0,1.99103687]
[1736842051403,8e-07,95256.0,95255.0,2.09103687]
[1736842054178,8e-07,95256.0,95255.0,2.08523687]
[1736842054380,8e-07,95256.0,95255.0,2.09103687]
[1736842054578,8e-07,95256.0,95255.0,2.08523687]
[1736842054784,8e-07,95256.0,95255.0,2.09103687]
[1736842055387,8e-07,95256.0,95255.0,1.86803687]
[1736842055592,8e-07,95256.0,95255.0,2.06803687]
[1736842055791,8e-07,95256.0,95255.0,2.09103687]
[1736842056856,8e-07,95256.0,95255.0,2.09260699]
[1736842057707,8e-07,95256.0,95255.0,2.09302493]
[1736842057908,8e-07,95256.0,95255.0,1.99481497]
[1736842058540,8e-07,95256.0,95255.0,1.66231497]
[1736842058751,8e-07,95256.0,95255.0,1.63931497]
[1736842058981,8e-07,95256.0,95255.0,1.64511497]
[1736842059211,8e-07,95256.0,95255.0,1.63931497]
[1736842059438,8e-07,95256.0,95255.0,1.79511497]
[1736842059704,8e-07,95256.0,95255.0,1.81811497]
[1736842061047,8e-07,95256.0,95255.0,1.81231497]
[1736842061380,8e-07,95256.0,95255.0,1.81811497]
[1736842062115,8e-07,95256.0,95255.0,1.80824737]
[1736842064675,0.289711,95279.0,95255.0,1.62944737]
[1736842064880,0.289711,95279.0,95256.0,0.28864384]
[1736842065081,0.289711,95279.0,95257.0,0.00385603]
[1736842065284,0.209912,95278.0,95267.0,0.209934]
[1736842065622,0.0164582,95274.0,95268.0,1.61564384]
[1736842065794,0.0164582,95274.0,95269.0,0.209931]
[1736842066068,0.0114582,95274.0,95269.0,0.209931]
[1736842066234,0.209912,95278.0,95269.0,0.209931]
[1736842066435,0.209912,95278.0,95270.0,1.5]
[1736842067529,0.209912,95278.0,95270.0,1.507]
[1736842068601,0.209912,95278.0,95270.0,1.509]
[1736842068806,0.209912,95278.0,95271.0,0.0034003]
[1736842069564,0.0008524,95274.0,95271.0,0.0034003]
[1736842070304,0.0008524,95274.0,95271.0,0.0124003]
[1736842070496,0.0008524,95274.0,95271.0,0.0054003]
[1736842070639,0.0008524,95274.0,95271.0,0.0034003]
[1736842070843,0.0008524,95274.0,95271.0,0.0124003]
[1736842071046,0.0008524,95274.0,95271.0,0.0144003]
[1736842072711,0.0008524,95274.0,95272.0,0.0004402]
[1736842072939,0.0008524,95274.0,95273.0,0.21331889]
[1736842073426,0.00072607,95274.0,95273.0,0.00339589]
[1736842074646,0.00072607,95274.0,95273.0,0.01239589]
[1736842074946,0.00072607,95274.0,95273.0,0.01439589]
[1736842078228,0.00072607,95274.0,95273.0,1.51439589]
[1736842079662,0.01718292,95274.0,95273.0,1.51439589]
[1736842081227,0.01718292,95274.0,95273.0,0.01439589]
[1736842081427,0.14008292,95274.0,95273.0,0.01439589]
[1736842081644,0.14008292,95274.0,95273.0,0.011]
[1736842081849,0.12362607,95274.0,95273.0,0.011]
[1736842082459,0.12362607,95274.0,95273.0,0.009]
[1736842083533,0.419846,95273.0,95269.0,0.00178983]
[1736842083689,0.209927,95271.0,95269.0,0.00178983]
[1736842083892,0.0774,95270.0,95269.0,0.00178983]
[1736842085097,0.0774,95270.0,95269.0,0.00378983]
[1736842085777,0.23270384,95270.0,95269.0,0.00378983]
[1736842086301,0.33270384,95270.0,95269.0,0.00378983]
[1736842086413,0.48270384,95270.0,95269.0,0.00378983]
[1736842086617,0.58270384,95270.0,95269.0,0.00378983]
[1736842087026,0.58270384,95270.0,95269.0,0.00178983]
[1736842088713,0.2729,95270.0,95269.0,0.00178983]
[1736842089338,0.309927,95271.0,95269.0,0.00178983]
[1736842089735,0.10980384,95270.0,95269.0,0.00178983]
[1736842092290,0.18720384,95270.0,95269.0,0.00178983]
[1736842096419,0.35106441,95270.0,95269.0,0.00178983]
[1736842096776,0.33460384,95270.0,95269.0,0.00178983]
[1736842099278,0.33660384,95270.0,95269.0,0.00178983]
[1736842099775,0.33460384,95270.0,95269.0,0.00178983]
[1736842100125,0.33760384,95270.0,95269.0,0.00178983]
[1736842100665,0.35406504,95270.0,95269.0,0.00178983]
[1736842102035,0.45406504,95270.0,95269.0,0.00178983]
[1736842102313,0.60406504,95270.0,95269.0,0.00178983]
[1736842104514,0.60406504,95270.0,95269.0,0.50178983]
[1736842104985,0.60406504,95270.0,95269.0,0.50623082]
[1736842105185,0.60491734,95270.0,95269.0,0.50623082]
[1736842105333,0.58845614,95270.0,95269.0,0.50623082]
[1736842110021,0.60491664,95270.0,95269.0,0.50623082]
[1736842111847,0.58845614,95270.0,95269.0,0.50623082]
[1736842115060,0.58845614,95270.0,95269.0,0.44325182]
[1736842115534,0.58845614,95270.0,95269.0,0.40126582]
[1736842116161,0.58845614,95270.0,95269.0,0.31729382]
[1736842116282,0.58845614,95270.0,95269.0,0.29809065]
[1736842117109,0.58845614,95270.0,95269.0,0.17369]
[1736842117591,0.58845614,95270.0,95269.0,0.16924901]
[1736842119416,0.36365614,95270.0,95269.0,0.16924901]
[1736842119615,0.26365614,95270.0,95269.0,0.16924901]
[1736842119822,0.0038523,95270.0,95269.0,0.16924901]
[1736842120198,0.0038523,95270.0,95269.0,0.17347815]
[1736842121105,0.0008523,95270.0,95269.0,0.17347815]
[1736842121500,0.0028523,95270.0,95269.0,0.17347815]
[1736842121697,0.0048523,95270.0,95269.0,0.17347815]
[1736842122275,0.0028523,95270.0,95269.0,0.17347815]
[1736842122481,0.0048523,95270.0,95269.0,0.17347815]
[1736842125376,0.209918,95276.0,95269.0,0.17347815]
[1736842125377,0.1411609,95291.0,95273.0,0.15]
[1736842125565,0.1411609,95291.0,95285.0,0.209896]
[1736842125566,0.09378463,95288.0,95285.0,0.209896]
[1736842125692,0.09378463,95288.0,95287.0,0.285192]
[1736842125894,0.09378463,95288.0,95287.0,0.39499584]
[1736842126190,0.00054623,95289.0,95287.0,0.32553584]
[1736842126394,0.00054623,95289.0,95288.0,0.18510384]
[1736842127462,0.00054623,95289.0,95288.0,1.68510384]
[1736842128143,0.00054623,95289.0,95288.0,1.68810384]
[1736842128270,0.00139853,95289.0,95288.0,1.68810384]
[1736842128685,0.00139853,95289.0,95288.0,1.69394384]
[1736842128889,0.01785313,95289.0,95288.0,1.69394384]
[1736842129498,0.01785313,95289.0,95288.0,0.19394384]
[1736842129906,0.01785313,95289.0,95288.0,1.69394384]
[1736842130101,0.01674152,95289.0,95288.0,1.69394384]
[1736842130658,0.01674152,95289.0,95288.0,0.19394384]
[1736842130948,0.01674152,95289.0,95288.0,1.68810384]
[1736842131179,0.01674152,95289.0,95288.0,1.69394384]
[1736842132276,0.00028692,95289.0,95288.0,1.69394384]
[1736842132854,0.00028692,95289.0,95288.0,1.69455908]
[1736842134035,0.00028692,95289.0,95288.0,1.74155908]
[1736842138521,0.00028692,95289.0,95288.0,0.23571908]
[1736842138808,0.00028692,95289.0,95288.0,0.24155908]
[1736842139256,0.00028692,95289.0,95288.0,0.23571908]
[1736842139428,0.00028692,95289.0,95288.0,0.24155908]
[1736842140839,0.00028692,95289.0,95288.0,1.74155908]
[1736842144009,0.00028692,95289.0,95288.0,0.24155908]
[1736842144736,0.00028692,95289.0,95288.0,0.23571908]
[1736842144968,0.00028692,95289.0,95288.0,0.24155908]
[1736842145346,0.00028692,95289.0,95288.0,0.13175524]
[1736842146541,0.01674226,95289.0,95288.0,0.13175524]
[1736842146757,0.01674226,95289.0,95288.0,1.63175524]
[1736842149080,0.01674226,95289.0,95288.0,1.62591524]
[1736842149273,0.22662926,95289.0,95288.0,0.00361524]
[1736842149395,0.21017392,95289.0,95288.0,0.003]
[1736842149823,0.21017392,95289.0,95288.0,0.00360357]
[1736842152134,0.21017392,95289.0,95288.0,0.00539298]
[1736842153160,0.21017392,95289.0,95288.0,0.00875582]
[1736842153576,0.21017392,95289.0,95288.0,0.00478941]
[1736842153781,0.21017392,95289.0,95288.0,1.50478941]
[1736842154099,0.21017392,95289.0,95288.0,1.50539298]
[1736842154254,0.21017392,95289.0,95288.0,1.50875582]
[1736842154651,0.21017392,95289.0,95288.0,0.00875582]
[1736842154890,0.2075162,95289.0,95288.0,0.00875582]
[1736842155077,0.2075162,95289.0,95288.0,0.00478941]
[1736842156859,0.22397309,95289.0,95288.0,0.00478941]
[1736842158265,0.01645689,95289.0,95288.0,0.00478941]
[1736842158441,0.01645689,95289.0,95288.0,0.13208941]
[1736842158675,0.0008525,95298.0,95288.0,1.63269655]
[1736842158865,0.00133982,95298.0,95288.0,1.63269655]
[1736842159444,0.00133982,95298.0,95294.0,0.0801]
[1736842159688,0.00133982,95298.0,95295.0,0.209874]
[1736842159846,0.00133982,95298.0,95295.0,0.21048696]
[1736842160474,0.00133982,95298.0,95295.0,0.42035996]
[1736842160676,0.00133982,95298.0,95297.0,0.31297]
[1736842160846,0.00133982,95298.0,95297.0,0.57277384]
[1736842161047,0.00133982,95298.0,95297.0,0.57338928]
[1736842161249,0.00133982,95298.0,95297.0,2.07338928]
[1736842162106,0.00133982,95298.0,95297.0,2.08238928]
[1736842162482,0.00133982,95298.0,95297.0,2.12958928]
[1736842162682,0.00133982,95298.0,95297.0,2.13984925]
[1736842163798,0.00133982,95298.0,95297.0,2.14284925]
[1736842166522,0.01779379,95298.0,95297.0,2.14284925]
[1736842169525,0.01779379,95298.0,95297.0,2.14619227]
[1736842172377,0.00133982,95298.0,95297.0,2.14619227]
[1736842176637,0.01779077,95298.0,95297.0,2.14619227]
[1736842176858,0.01779077,95298.0,95297.0,2.34619227]
[1736842177199,0.01779077,95298.0,95297.0,3.5995148]
[1736842177503,0.01779077,95298.0,95297.0,2.6782798]
[1736842177689,0.01779077,95298.0,95297.0,2.6752798]
[1736842177896,0.01779077,95298.0,95297.0,2.6662798]
[1736842178120,0.01779077,95298.0,95297.0,2.6722798]
[1736842178322,7.7e-07,95298.0,95297.0,2.6812798]
[1736842178525,0.48760471,95303.0,95302.0,0.606059]
[1736842178724,0.48770181,95303.0,95302.0,0.74838781]
[1736842178928,0.48770181,95303.0,95302.0,0.75231606]
[1736842179135,0.48770181,95303.0,95302.0,0.85231606]
[1736842179357,0.48770181,95303.0,95302.0,2.35231606]
[1736842179788,0.48770181,95303.0,95302.0,2.36631606]
[1736842180495,0.48770181,95303.0,95302.0,2.33379109]
[1736842180827,0.48714212,95303.0,95302.0,2.33379109]
[1736842181044,0.48714212,95303.0,95302.0,2.26629434]
[1736842181259,0.48714212,95303.0,95302.0,2.36629434]
[1736842182493,0.48714212,95303.0,95302.0,2.33379109]
[1736842182763,7e-05,95315.0,95306.0,0.68305]
[1736842182970,7e-05,95315.0,95306.0,0.82173384]
[1736842183120,7e-05,95315.0,95306.0,0.82505704]
[1736842183325,7e-05,95315.0,95306.0,2.32505704]
[1736842183950,7e-05,95315.0,95306.0,2.33405704]
[1736842184877,7e-05,95315.0,95306.0,2.34105704]
[1736842185236,7e-05,95315.0,95306.0,2.33517704]
[1736842185436,7e-05,95315.0,95306.0,2.34109704]
[1736842186574,7e-05,95315.0,95306.0,2.33517704]
[1736842186839,0.01730179,95307.0,95306.0,2.34109704]
[1736842190193,0.0008524,95307.0,95306.0,2.34109704]
[1736842192768,0.0008524,95307.0,95306.0,2.3741063]
[1736842194775,0.0008524,95307.0,95306.0,2.1681863]
[1736842194982,0.0008524,95307.0,95306.0,0.4951863]
[1736842195183,0.0008524,95307.0,95306.0,0.46858049]
[1736842195516,0.0008524,95307.0,95306.0,0.49538049]
[1736842195716,0.0008524,95307.0,95306.0,0.51838049]
[1736842196052,0.0008524,95307.0,95306.0,0.36246049]
[1736842196247,0.0008524,95307.0,95306.0,0.34538049]
[1736842196471,0.0008524,95307.0,95306.0,1.98246049]
[1736842196668,0.0008524,95307.0,95306.0,1.99338049]
[1736842196871,0.0008524,95307.0,95306.0,2.00738049]
[1736842197084,0.0008524,95307.0,95306.0,2.07286049]
[1736842197306,0.0008524,95307.0,95306.0,2.23458049]
[1736842197491,0.0008524,95307.0,95306.0,2.27116002]
[1736842198115,0.0008524,95307.0,95306.0,2.26216002]
[1736842198328,0.0008524,95307.0,95306.0,2.70405147]
[1736842198676,4e-07,95307.0,95306.0,2.79505147]
[1736842198814,4e-07,95307.0,95306.0,2.37895502]
[1736842199025,4e-07,95307.0,95306.0,2.38295502]
[1736842199424,4e-07,95307.0,95306.0,2.37895502]
[1736842199961,7e-05,95315.0,95314.0,0.459832]
[1736842200168,7e-05,95315.0,95314.0,0.75511537]
[1736842200363,7e-05,95315.0,95314.0,0.75918745]
[1736842200748,7e-05,95315.0,95314.0,2.25918745]
[1736842201131,7e-05,95315.0,95314.0,2.26818745]
[1736842201542,0.018034,95317.0,95316.0,0.35]
[1736842201725,0.0008524,95328.0,95326.0,0.3029]
[1736842201927,0.0008524,95328.0,95326.0,0.62250984]
[1736842202171,6e-07,95329.0,95328.0,0.332]
[1736842202381,6e-07,95329.0,95328.0,2.17460484]
[1736842203402,6e-07,95329.0,95328.0,2.2071447]
[1736842203939,6e-07,95329.0,95328.0,2.21041947]
[1736842204146,9.258e-05,95329.0,95328.0,2.21041947]
[1736842204351,9.258e-05,95329.0,95328.0,4.45115347]
[1736842204585,9.258e-05,95329.0,95328.0,4.49351428]
[1736842204781,9.258e-05,95329.0,95328.0,4.38110965]
[1736842204942,9.258e-05,95329.0,95328.0,4.36556979]
[1736842205337,0.01653876,95329.0,95328.0,4.36556979]
[1736842206376,9.258e-05,95329.0,95328.0,4.06447679]
[1736842206781,9.258e-05,95329.0,95328.0,3.97253779]
[1736842207233,9.258e-05,95329.0,95328.0,3.57510579]
[1736842207404,9.258e-05,95329.0,95328.0,3.60764023]
[1736842207644,9.258e-05,95329.0,95328.0,2.10512042]
[1736842207823,9.258e-05,95329.0,95328.0,2.08881001]
[1736842208040,9.258e-05,95329.0,95328.0,2.00681001]
[1736842208255,9.258e-05,95329.0,95328.0,0.3406492]
[1736842208462,0.07849258,95329.0,95328.0,0.02696436]
[1736842208669,0.07849258,95329.0,95328.0,0.01896436]
[1736842208841,0.07849258,95329.0,95328.0,0.02496436]
[1736842209463,0.09494194,95329.0,95328.0,0.01896436]
[1736842209687,0.09494194,95329.0,95328.0,0.02196436]
[1736842209858,0.09494194,95329.0,95328.0,0.00704436]
[1736842210066,0.09494194,95329.0,95328.0,0.02196436]
[1736842210268,0.09494194,95329.0,95328.0,0.02175841]
[1736842210493,0.14204194,95329.0,95328.0,0.00892]
[1736842210649,0.14204194,95329.0,95328.0,0.01792]
[1736842210863,0.14204194,95329.0,95328.0,0.012]
[1736842211064,0.14204194,95329.0,95328.0,0.003]
[1736842211300,0.14204194,95329.0,95328.0,0.012]
[1736842211677,0.14204194,95329.0,95328.0,0.009]
[1736842211982,0.14204194,95329.0,95328.0,0.012]
[1736842212160,0.14289464,95329.0,95328.0,0.012]
[1736842212744,0.14289464,95329.0,95328.0,0.009]
[1736842212950,0.14289464,95329.0,95328.0,0.002]
[1736842213279,0.14289464,95329.0,95328.0,0.004]
[1736842215018,0.12644528,95329.0,95328.0,0.004]
[1736842215232,0.1,95327.0,95326.0,0.00179067]
[1736842215440,0.269701,95328.0,95326.0,0.00179067]
[1736842216213,0.0823,95327.0,95326.0,0.00179067]
[1736842216414,0.0833,95327.0,95326.0,0.00179067]
[1736842217923,0.0823,95327.0,95326.0,0.00179067]
[1736842218969,0.0833,95327.0,95326.0,0.00179067]
[1736842219982,0.0174514,95327.0,95326.0,0.00179067]
[1736842220238,0.001,95327.0,95326.0,0.00179067]
[1736842220626,0.001,95327.0,95326.0,0.00591339]
[1736842220911,0.001,95327.0,95326.0,0.00179067]
[1736842221356,0.00094528,95329.0,95326.0,0.00179067]
[1736842221569,0.001,95327.0,95326.0,0.00179067]
[1736842222319,0.00094528,95329.0,95327.0,0.209804]
[1736842222499,0.00194528,95329.0,95327.0,0.209804]
[1736842223225,0.0183946,95329.0,95327.0,0.209804]
[1736842223409,0.0183946,95329.0,95326.0,0.00179067]
[1736842223810,0.0183946,95329.0,95326.0,0.21159567]
[1736842224009,0.0008527,95328.0,95326.0,0.21159567]
[1736842224224,0.001,95327.0,95326.0,0.21159567]
[1736842224836,0.0008527,95328.0,95326.0,1.71159567]
[1736842225056,0.0008527,95328.0,95327.0,0.10980384]
[1736842225468,0.0008527,95328.0,95327.0,0.13280384]
[1736842225703,0.0008527,95328.0,95327.0,0.18140384]
[1736842226024,0.0008527,95328.0,95327.0,0.19116324]
[1736842227167,0.0008527,95328.0,95327.0,0.34221211]
[1736842227451,0.0008527,95328.0,95327.0,0.34116324]
[1736842227680,0.0018527,95328.0,95327.0,0.52316324]
[1736842227913,0.0018527,95328.0,95327.0,0.53116324]
[1736842228137,0.0008527,95328.0,95327.0,0.56369301]
[1736842228365,0.0008527,95328.0,95327.0,2.16369301]
[1736842228576,9.8e-07,95329.0,95328.0,0.564801]
[1736842228846,9.8e-07,95329.0,95328.0,0.75573461]
[1736842229125,9.8e-07,95329.0,95328.0,0.85573461]
[1736842229360,9.8e-07,95329.0,95328.0,2.35573461]
[1736842230515,9.8e-07,95329.0,95328.0,2.36473461]
[1736842230739,9.8e-07,95329.0,95328.0,2.37065461]
[1736842231438,9.8e-07,95329.0,95328.0,2.37665461]
[1736842233147,0.000852,95352.0,95346.0,0.1]
[1736842233365,0.00094396,95352.0,95351.0,0.28280384]
[1736842233594,0.00094396,95352.0,95351.0,0.49847484]
[1736842233819,0.00094396,95352.0,95351.0,1.99847484]
[1736842234951,0.00094396,95352.0,95351.0,2.00823424]
[1736842235190,0.20688176,95381.0,95366.0,0.209718]
[1736842235437,0.20697372,95381.0,95368.0,0.209713]
[1736842235648,0.20697372,95381.0,95369.0,0.10980384]
[1736842236105,0.20697372,95381.0,95366.0,0.209718]
[1736842236331,0.209687,95380.0,95367.0,0.10980384]
[1736842236590,0.01644403,95378.0,95373.0,0.209701]
[1736842236827,0.01644403,95378.0,95375.0,0.419396]
[1736842237036,0.01644403,95378.0,95376.0,0.10980384]
[1736842237260,0.01644403,95378.0,95377.0,1.732694]
[1736842237616,0.01644403,95378.0,95377.0,1.81949784]
[1736842237849,9.196e-05,95381.0,95377.0,1.82541784]
[1736842238028,0.001,95380.0,95378.0,0.10980384]
[1736842238275,0.001,95380.0,95379.0,0.209689]
[1736842238479,9.196e-05,95381.0,95379.0,0.31949284]
[1736842238690,9.196e-05,95381.0,95380.0,0.10980384]
[1736842240125,9.196e-05,95381.0,95380.0,0.11180384]
[1736842240350,9.196e-05,95381.0,95380.0,0.46645218]
[1736842240557,9.6e-07,95381.0,95380.0,1.86870384]
[1736842240748,0.00081366,95385.0,95384.0,0.3306]
[1736842240959,0.00081366,95385.0,95384.0,4.31305784]
[1736842241395,7e-07,95394.0,95393.0,1.099858]
[1736842241600,0.09385463,95444.0,95408.0,0.612126]
[1736842241809,0.09385463,95444.0,95408.0,0.72784984]
[1736842242088,0.09385463,95444.0,95408.0,2.45778184]
[1736842242289,0.09385463,95444.0,95408.0,2.32924984]
[1736842242491,7e-05,95444.0,95408.0,2.33219284]
[1736842242755,0.209618,95444.0,95408.0,2.23755541]
[1736842242925,0.209618,95444.0,95408.0,2.23163541]
[1736842243159,0.209618,95444.0,95408.0,2.41523799]
[1736842243308,7e-05,95444.0,95408.0,2.37089499]
[1736842243511,7e-05,95444.0,95408.0,2.38389499]
[1736842243741,7e-05,95444.0,95408.0,2.48389499]
[1736842245010,7e-05,95444.0,95408.0,2.36074299]
[1736842245213,7e-05,95444.0,95408.0,3.68790299]
[1736842245582,7e-05,95444.0,95408.0,2.96691099]
[1736842245795,7e-05,95444.0,95408.0,2.90080399]
[1736842246641,7e-05,95444.0,95408.0,2.89680399]
[1736842247005,7e-05,95444.0,95408.0,2.88780399]
[1736842247186,7e-05,95444.0,95408.0,2.89680399]
[1736842247722,7e-05,95444.0,95408.0,2.59666899]
[1736842248459,0.0012527,95409.0,95408.0,2.60066899]
[1736842249157,0.0012527,95409.0,95408.0,2.56832399]
[1736842249327,0.0012527,95409.0,95408.0,2.53432399]
[1736842251111,0.0012527,95409.0,95408.0,2.43432399]
[1736842251435,7e-05,95444.0,95422.0,0.382595]
[1736842251653,0.01482929,95423.0,95422.0,0.49239884]
[1736842252018,0.01482929,95423.0,95422.0,1.99239884]
[1736842252440,0.01482929,95423.0,95422.0,1.81939884]
[1736842252646,0.01482929,95423.0,95422.0,0.01008]
[1736842252827,0.01482929,95423.0,95422.0,0.11988384]
[1736842253252,0.01482929,95423.0,95422.0,1.61988384]
[1736842253570,0.01482929,95423.0,95422.0,1.62888384]
[1736842253785,0.01482929,95423.0,95422.0,1.61988384]
[1736842253996,0.01482929,95423.0,95422.0,1.62888384]
[1736842254200,0.01482929,95423.0,95422.0,1.61988384]
[1736842254605,0.01482929,95423.0,95422.0,1.62488384]
[1736842254967,0.01482929,95423.0,95422.0,1.61588384]
[1736842255381,0.01482929,95423.0,95422.0,1.63280384]
[1736842255584,0.01482929,95423.0,95422.0,1.79088384]
[1736842255983,0.01482929,95423.0,95422.0,1.78888384]
[1736842256369,0.01482929,95423.0,95422.0,1.80188384]
[1736842256563,0.01482929,95423.0,95422.0,1.79288384]
[1736842256932,0.01482929,95423.0,95422.0,1.79580384]
[1736842257123,0.01482929,95423.0,95422.0,1.80188384]
[1736842257324,0.01482929,95423.0,95422.0,1.81155635]
[1736842257803,0.01482929,95423.0,95422.0,1.80547635]
[1736842258012,0.01482929,95423.0,95422.0,1.82159364]
[1736842260063,0.01568139,95423.0,95422.0,1.82159364]
[1736842260894,0.01568139,95423.0,95422.0,2.03118864]
[1736842261324,0.01568139,95423.0,95422.0,2.02510864]
[1736842261531,0.01568139,95423.0,95422.0,2.03118864]
[1736842262802,0.01568139,95423.0,95422.0,2.01507135]
[1736842262997,0.01568139,95423.0,95422.0,1.99815135]
[1736842263217,0.01568139,95423.0,95422.0,1.78855635]
[1736842263418,0.01568139,95423.0,95422.0,1.52875251]
[1736842263620,0.01555522,95423.0,95422.0,1.52267251]
[1736842263898,0.01555522,95423.0,95422.0,1.67267251]
[1736842264101,0.01555522,95423.0,95422.0,1.66367251]
[1736842264300,0.01555522,95423.0,95422.0,1.65967251]
[1736842264521,0.01555522,95423.0,95422.0,1.52067251]
[1736842264719,0.01555522,95423.0,95422.0,0.02067251]
[1736842264944,0.01555522,95423.0,95422.0,0.01667251]
[1736842265147,0.14495522,95423.0,95422.0,0.01667251]
[1736842265349,0.14495522,95423.0,95422.0,0.01867251]
[1736842265472,0.24495522,95423.0,95422.0,0.01867251]
[1736842265674,0.253921,95410.0,95409.0,1.5]
[1736842267174,0.253921,95410.0,95409.0,1.502]
[1736842268058,0.0443,95410.0,95409.0,1.502]
[1736842268651,0.209613,95414.0,95409.0,1.502]
[1736842268948,0.209613,95414.0,95409.0,1.50575393]
[1736842269648,0.209613,95414.0,95409.0,1.50375393]
[1736842269820,0.210613,95414.0,95409.0,1.50375393]
[1736842270019,0.001,95414.0,95409.0,1.50375393]
[1736842271174,0.002,95414.0,95409.0,1.50375393]
[1736842272101,0.002,95414.0,95409.0,1.50554313]
[1736842272545,0.209615,95413.0,95409.0,1.50554313]
[1736842274159,0.210615,95413.0,95409.0,1.50554313]
[1736842275365,0.001,95413.0,95409.0,1.50554313]
[1736842275550,0.001,95413.0,95410.0,0.10980384]
[1736842275906,0.001,95413.0,95410.0,0.11356501]
[1736842276110,0.001,95413.0,95411.0,0.209619]
[1736842276302,0.001,95413.0,95412.0,0.13280384]
[1736842276432,0.001,95413.0,95412.0,0.16897011]
[1736842276651,0.0008523,95425.0,95414.0,0.023]
[1736842276849,0.0008523,95425.0,95422.0,0.209595]
[1736842277133,0.0008523,95425.0,95422.0,0.31939884]
[1736842277335,0.0008523,95425.0,95422.0,0.32314359]
[1736842277458,0.0008523,95425.0,95422.0,1.82314359]
[1736842277857,0.0008523,95425.0,95422.0,1.99614359]
[1736842278306,0.0008523,95425.0,95422.0,2.15684146]
[1736842279256,0.0008523,95425.0,95422.0,2.16656032]
[1736842279479,0.0008523,95425.0,95422.0,2.16756032]
[1736842279927,0.0008523,95425.0,95422.0,2.17256032]
[1736842280300,0.0008523,95425.0,95422.0,2.18263035]
[1736842280737,0.0008523,95425.0,95422.0,2.18867035]
[1736842281334,0.0008523,95425.0,95422.0,2.18767035]
[1736842281719,0.0008523,95425.0,95422.0,2.18267035]
[1736842281924,0.0008523,95425.0,95422.0,2.19167035]
[1736842282663,0.0008523,95425.0,95422.0,2.19467035]
[1736842282869,0.0008523,95425.0,95422.0,2.19560325]
[1736842283269,0.0008523,95425.0,95422.0,2.16320538]
[1736842283473,0.0008523,95425.0,95422.0,1.99579535]
[1736842283699,0.0008523,95425.0,95422.0,0.50183535]
[1736842284039,0.0008523,95425.0,95422.0,2.00183535]
[1736842285066,0.0008523,95425.0,95422.0,0.17639651]
[1736842285260,0.001,95460.0,95447.0,0.45954]
[1736842285512,0.001,95460.0,95459.0,0.382514]
[1736842285730,0.01643094,95486.0,95485.0,0.209456]
[1736842285930,0.01643094,95486.0,95485.0,0.47529984]
[1736842286212,0.01657708,95486.0,95485.0,0.49338595]
[1736842286454,0.1,95519.0,95485.0,0.49338595]
[1736842286455,0.06988169,95499.0,95498.0,0.359428]
[1736842286629,0.02239081,95499.0,95498.0,0.49223184]
[1736842286876,0.09378463,95524.0,95498.0,0.49223184]
[1736842286877,0.09378463,95524.0,95504.0,0.209415]
[1736842287082,0.02316025,95526.0,95504.0,0.31921884]
[1736842287293,0.02316025,95526.0,95504.0,0.34645563]
[1736842287494,0.02316025,95526.0,95504.0,1.84645563]
[1736842287904,0.02316025,95526.0,95504.0,1.99645563]
[1736842289425,0.00075995,95505.0,95504.0,1.99645563]
[1736842289831,0.00075995,95505.0,95504.0,1.97345563]
[1736842290038,0.00075995,95505.0,95504.0,1.98749563]
[1736842290236,0.00075995,95505.0,95504.0,0.49049563]
[1736842290667,0.00075995,95505.0,95504.0,0.48749563]
[1736842291140,0.00075995,95505.0,95504.0,0.12404063]
[1736842291328,0.00075995,95505.0,95504.0,0.13008063]
[1736842291732,0.00075995,95505.0,95504.0,0.12404063]
[1736842291912,0.00075995,95505.0,95504.0,0.12208063]
[1736842292109,0.00075995,95505.0,95504.0,0.00623679]
[1736842292310,0.00075995,95505.0,95504.0,0.01223679]
[1736842292511,0.00075995,95505.0,95504.0,0.00423679]
[1736842292688,0.00075995,95505.0,95493.0,0.00604]
[1736842292893,0.00075995,95505.0,95504.0,0.004]
[1736842293113,0.00075995,95505.0,95491.0,0.00604]
[1736842293114,0.209434,95496.0,95491.0,0.00604]
[1736842293309,0.209435,95495.0,95479.0,0.209468]
[1736842293552,0.209435,95495.0,95480.0,0.11584384]
[1736842293758,0.209435,95495.0,95480.0,0.12745384]
[1736842293958,0.209435,95495.0,95482.0,0.209463]
[1736842294294,0.209441,95492.0,95491.0,0.001]
[1736842295655,0.12692978,95501.0,95469.0,0.00604]
[1736842295656,0.209435,95495.0,95469.0,0.00604]
[1736842295880,0.209471,95479.0,95453.0,0.0486]
[1736842296184,0.12692978,95490.0,95453.0,0.0486]